[Event "African Open (w)"]
[Site "followchess.com"]
[Date "2022.09.24"]
[Round "6"]
[White "Oyelese, Mayomi"]
[Black "Aramude, Sandra"]
[Result "0-1"]
[ECO "D37"]
[WhiteElo "1677"]
[BlackElo "1813"]
[PlyCount "140"]
[EventDate "2022.??.??"]
[TimeControl "5400+30"]

1. d4 {[%emt 0:00:01]} d5 {[%emt 0:00:18]} 2. c4 {[%emt 0:00:03]} e6 {[%emt 0:
00:13]} 3. Nc3 {[%emt 0:02:14]} Nf6 {[%emt 0:00:22]} 4. Nf3 {[%emt 0:00:50]}
Be7 {[%emt 0:00:24]} 5. Bf4 {[%emt 0:00:35]} a6 {[%emt 0:00:34]} 6. cxd5 {
[%emt 0:00:42]} exd5 {[%emt 0:00:42]} 7. h3 {[%emt 0:00:29]} h6 {[%emt 0:02:01]
} 8. e3 {[%emt 0:00:41]} Bf5 {[%emt 0:00:26]} 9. Bd3 {[%emt 0:00:29]} Ne4 {
[%emt 0:01:23]} 10. Qc2 {[%emt 0:01:00]} Bb4 {[%emt 0:07:10]} 11. Nd2 {[%emt 0:
03:23]} Nxc3 {[%emt 0:09:35]} 12. bxc3 {[%emt 0:00:09]} Bxd3 {[%emt 0:00:27]}
13. Qxd3 {[%emt 0:00:03]} Bd6 {[%emt 0:01:08]} 14. Bxd6 {[%emt 0:00:38]} Qxd6 {
[%emt 0:00:01]} 15. Nf3 {[%emt 0:00:31]} O-O {[%emt 0:03:15]} 16. O-O {[%emt 0:
00:40]} b5 {[%emt 0:00:36]} 17. a4 {[%emt 0:00:30]} c6 {[%emt 0:00:37]} 18. Ra2
{[%emt 0:05:16]} Nd7 {[%emt 0:00:42]} 19. Rfa1 {[%emt 0:00:02]} Nb6 {[%emt 0:
01:24]} 20. axb5 {[%emt 0:03:28]} axb5 {[%emt 0:01:18]} 21. Qb1 {[%emt 0:02:34]
} Ra4 {[%emt 0:09:10]} 22. Ne5 {[%emt 0:03:46]} Rfa8 {[%emt 0:11:06]} 23. Qb3 {
[%emt 0:01:53]} Rxa2 {[%emt 0:10:34]} 24. Rxa2 {[%emt 0:00:10]} Rxa2 {[%emt 0:
01:37]} 25. Qxa2 {[%emt 0:00:02]} f6 {[%emt 0:05:33]} 26. Nd3 {[%emt 0:01:31]}
Na4 {[%emt 0:00:36]} 27. Qb3 {[%emt 0:00:57]} Kf7 {[%emt 0:00:12]} 28. e4 {
[%emt 0:10:20]} Ke7 {[%emt 0:07:02]} 29. exd5 {[%emt 0:02:52]} Qxd5 {[%emt 0:
00:16]} 30. Qa3+ {[%emt 0:00:29]} Kf7 {[%emt 0:01:15]} 31. Nb2 {[%emt 0:04:02]}
Nxb2 {[%emt 0:01:52]} 32. Qxb2 {[%emt 0:00:01]} Qc4 {[%emt 0:00:09]} 33. f3 {
[%emt 0:01:45]} f5 {[%emt 0:01:33]} 34. g3 {[%emt 0:01:58]} Ke6 {[%emt 0:00:28]
} 35. Kf2 {[%emt 0:00:02]} c5 {[%emt 0:01:29]} 36. Ke3 {[%emt 0:01:57]} cxd4+ {
[%emt 0:00:49]} 37. cxd4 {[%emt 0:00:03]} b4 {[%emt 0:01:16]} 38. h4 {[%emt 0:
00:59]} g6 {[%emt 0:02:47]} 39. g4 {[%emt 0:01:33]} fxg4 {[%emt 0:00:38]} 40.
fxg4 {[%emt 0:00:03]} Kd5 {[%emt 0:00:08]} 41. Qg2+ {[%emt 0:01:33]} Kd6 {
[%emt 0:01:20]} 42. Qg3+ {[%emt 0:00:29]} Kc6 {[%emt 0:01:10]} 43. Qf3+ {
[%emt 0:00:23]} Qd5 {[%emt 0:00:11]} 44. Qd1 {[%emt 0:07:47]} b3 {[%emt 0:01:
25]} 45. Qc1+ {[%emt 0:00:54]} Kb5 {[%emt 0:01:28]} 46. Qf1+ {[%emt 0:06:23]}
Qc4 {[%emt 0:04:55]} 47. Qf6 {[%emt 0:03:40]} Qc1+ {[%emt 0:03:36]} 48. Ke4 {
[%emt 0:02:20]} Qc6+ {[%emt 0:06:42]} 49. Qxc6+ {[%emt 0:01:34]} Kxc6 {[%emt 0:
00:05]} 50. Kd3 {[%emt 0:00:47]} Kd5 {[%emt 0:00:15]} 51. Kc3 {[%emt 0:00:10]}
b2 {[%emt 0:00:10]} 52. Kxb2 Kxd4 53. Kc2 {[%emt 0:01:06]} Ke4 {[%emt 0:00:24]}
54. Kd2 {[%emt 0:00:33]} Kf4 {[%emt 0:00:24]} 55. g5 {[%emt 0:00:04]} h5 {
[%emt 0:00:39]} 56. Ke2 {[%emt 0:32:06]} Kg4 {[%emt 0:00:00]} 57. Ke3 {[%emt 0:
00:00]} Kxh4 {[%emt 0:00:00]} 58. Kf4 {[%emt 0:00:00]} Kh3 {[%emt 0:00:00]} 59.
Kf3 {[%emt 0:00:00]} h4 {[%emt 0:00:00]} 60. Kf4 {[%emt 0:00:00]} Kg2 {[%emt 0:
00:00]} 61. Ke5 {[%emt 0:00:00]} h3 {[%emt 0:00:00]} 62. Kf6 {[%emt 0:00:00]}
h2 {[%emt 0:00:00]} 63. Kxg6 {[%emt 0:00:00]} h1=Q 64. Kg7 {[%emt 0:00:00]}
Qa1+ {[%emt 0:00:00]} 65. Kh6 {[%emt 0:00:00]} Qh8+ {[%emt 0:00:00]} 66. Kg6 {
[%emt 0:00:00]} Qg8+ {[%emt 0:00:00]} 67. Kh6 {[%emt 0:00:00]} Kf3 {[%emt 0:00:
00]} 68. g6 {[%emt 0:00:00]} Kf4 {[%emt 0:00:00]} 69. g7 {[%emt 0:00:00]} Kf5 {
[%emt 0:00:00]} 70. Kh5 {[%emt 0:00:00]} Qh7# {[%emt 0:00:00]} 0-1

[Event "African Open (w)"]
[Site "followchess.com"]
[Date "2022.09.24"]
[Round "6"]
[White "Caxita, Esperanca"]
[Black "Wafa, Shahenda"]
[Result "0-1"]
[ECO "B24"]
[WhiteElo "1961"]
[BlackElo "2110"]
[PlyCount "66"]
[EventDate "2022.??.??"]
[TimeControl "5400+30"]

1. e4 {[%emt 0:00:04]} c5 {[%emt 0:00:10]} 2. Nc3 {[%emt 0:00:18]} Nc6 {
[%emt 0:00:10]} 3. g3 {[%emt 0:00:19]} g6 {[%emt 0:00:15]} 4. Bg2 {[%emt 0:00:
21]} Bg7 {[%emt 0:00:08]} 5. Nge2 {[%emt 0:00:21]} e6 {[%emt 0:01:02]} 6. d3 {
[%emt 0:00:49]} Nge7 {[%emt 0:00:25]} 7. Be3 {[%emt 0:01:07]} Nd4 {[%emt 0:01:
19]} 8. Bd2 {[%emt 0:01:13]} O-O {[%emt 0:07:56]} 9. Nxd4 {[%emt 0:01:32]} cxd4
{[%emt 0:01:12]} 10. Ne2 {[%emt 0:00:12]} d5 {[%emt 0:01:29]} 11. O-O {[%emt 0:
04:01]} dxe4 {[%emt 0:02:26]} 12. dxe4 {[%emt 0:01:49]} Qb6 {[%emt 0:01:21]}
13. Rb1 {[%emt 0:03:12]} e5 {[%emt 0:04:50]} 14. Nc1 {[%emt 0:08:41]} Be6 {
[%emt 0:02:57]} 15. a3 {[%emt 0:03:33]} f5 {[%emt 0:03:23]} 16. Nd3 {[%emt 0:
08:18]} fxe4 {[%emt 0:07:13]} 17. Bxe4 {[%emt 0:00:21]} Nf5 {[%emt 0:14:10]}
18. Qe2 {[%emt 0:10:36]} Rfe8 {[%emt 0:03:41]} 19. b4 {[%emt 0:07:12]} Bc4 {
[%emt 0:06:40]} 20. Rfe1 {[%emt 0:05:23]} Nd6 {[%emt 0:02:19]} 21. f3 {[%emt 0:
06:27]} Rac8 {[%emt 0:06:12]} 22. Rec1 {[%emt 0:03:17]} Rc7 {[%emt 0:02:35]}
23. Qe1 {[%emt 0:01:06]} Nxe4 {[%emt 0:00:57]} 24. Qxe4 {[%emt 0:00:56]} Qd6 {
[%emt 0:01:25]} 25. Nf2 {[%emt 0:06:04]} Rf7 {[%emt 0:02:47]} 26. f4 {[%emt 0:
06:32]} Bd5 {[%emt 0:00:44]} 27. fxe5 {[%emt 0:01:14]} Rxe5 {[%emt 0:01:26]}
28. Qd3 {[%emt 0:06:01]} Rf3 {[%emt 0:00:38]} 29. Qf1 {[%emt 0:01:30]} Ref5 {
[%emt 0:00:48]} 30. Bf4 {[%emt 0:07:29]} R3xf4 {[%emt 0:00:21]} 31. gxf4 {
[%emt 0:01:39]} Qxf4 {[%emt 0:00:08]} 32. Qe2 {[%emt 0:02:02]} Rg5+ {[%emt 0:
00:39]} 33. Kf1 {[%emt 0:02:27]} Bg2+ {[%emt 0:00:10]} 0-1

[Event "African Open (w)"]
[Site "followchess.com"]
[Date "2022.09.24"]
[Round "6"]
[White "Paulo, Jemima"]
[Black "ONOJA, Iyefu Joy"]
[Result "0-1"]
[ECO "D45"]
[WhiteElo "1886"]
[BlackElo "1762"]
[PlyCount "74"]
[EventDate "2022.??.??"]
[TimeControl "5400+30"]

1. c4 {[%emt 0:00:02]} e6 {[%emt 0:00:14]} 2. Nc3 {[%emt 0:01:20]} d5 {[%emt 0:
00:15]} 3. d4 {[%emt 0:00:30]} Nf6 {[%emt 0:02:40]} 4. e3 {[%emt 0:02:42]} c6 {
[%emt 0:03:14]} 5. Nf3 {[%emt 0:03:37]} Be7 {[%emt 0:00:43]} 6. Bd3 {[%emt 0:
00:18]} O-O {[%emt 0:02:42]} 7. O-O {[%emt 0:00:06]} Nbd7 {[%emt 0:00:29]} 8.
b3 {[%emt 0:01:22]} b6 {[%emt 0:01:51]} 9. Bb2 {[%emt 0:01:30]} Bb7 {[%emt 0:
00:32]} 10. Qc2 {[%emt 0:02:30]} h6 {[%emt 0:01:16]} 11. Nd2 {[%emt 0:03:03]}
c5 {[%emt 0:01:29]} 12. f4 {[%emt 0:00:10]} Ng4 {[%emt 0:05:50]} 13. Rae1 {
[%emt 0:00:17]} Nxe3 {[%emt 0:03:26]} 14. Rxe3 {[%emt 0:00:09]} cxd4 {[%emt 0:
00:05]} 15. Rh3 {[%emt 0:00:12]} dxc3 {[%emt 0:00:37]} 16. Bxc3 {[%emt 0:00:12]
} Bf6 {[%emt 0:03:34]} 17. Nf3 {[%emt 0:00:46]} Nc5 {[%emt 0:01:00]} 18. Bxf6 {
[%emt 0:00:24]} Qxf6 {[%emt 0:00:14]} 19. Bh7+ {[%emt 0:00:08]} Kh8 {[%emt 0:
00:26]} 20. Ne5 {[%emt 0:00:14]} Ne4 {[%emt 0:02:00]} 21. Bxe4 {[%emt 0:01:30]}
dxe4 {[%emt 0:00:08]} 22. Qc3 {[%emt 0:01:16]} Rad8 {[%emt 0:03:40]} 23. g4 {
[%emt 0:01:17]} Kg8 {[%emt 0:03:03]} 24. c5 {[%emt 0:13:26]} bxc5 {[%emt 0:19:
54]} 25. Qxc5 {[%emt 0:00:09]} Rd2 {[%emt 0:07:55]} 26. Qxa7 {[%emt 0:02:44]}
Qe7 {[%emt 0:00:18]} 27. Nc4 {[%emt 0:00:26]} Ra8 {[%emt 0:01:45]} 28. Qb6 {
[%emt 0:02:23]} Rdxa2 {[%emt 0:01:08]} 29. g5 {[%emt 0:00:46]} hxg5 {[%emt 0:
02:21]} 30. fxg5 {[%emt 0:00:11]} Qxg5+ {[%emt 0:00:59]} 31. Rg3 {[%emt 0:00:
08]} Qh6 {[%emt 0:00:08]} 32. Rf2 {[%emt 0:00:59]} Rxf2 {[%emt 0:00:38]} 33.
Kxf2 {[%emt 0:00:27]} Qxh2+ {[%emt 0:00:14]} 34. Rg2 {[%emt 0:00:17]} e3+ {
[%emt 0:00:10]} 35. Nxe3 {[%emt 0:00:20]} Bxg2 {[%emt 0:00:17]} 36. Nxg2 {
[%emt 0:00:12]} Ra2+ {[%emt 0:00:06]} 37. Kf3 {[%emt 0:00:23]} Qxg2+ 0-1

[Event "African Open (w)"]
[Site "followchess.com"]
[Date "2022.09.25"]
[Round "7"]
[White "Ampaire Shakira"]
[Black "Paulo, Jemima"]
[Result "0-1"]
[ECO "B50"]
[WhiteElo "1657"]
[BlackElo "1886"]
[PlyCount "54"]
[EventDate "2022.??.??"]
[TimeControl "5400+30"]

1. e4 {[%emt 0:00:42]} c5 {[%emt 0:00:09]} 2. Nf3 {[%emt 0:00:14]} d6 {[%emt 0:
00:25]} 3. c3 {[%emt 0:00:19]} Nf6 {[%emt 0:00:14]} 4. Be2 {[%emt 0:06:59]} g6
{[%emt 0:04:00]} 5. O-O {[%emt 0:02:32]} Bg7 {[%emt 0:00:06]} 6. Bb5+ {[%emt 0:
07:10]} Bd7 {[%emt 0:00:18]} 7. Bxd7+ {[%emt 0:01:11]} Nbxd7 {[%emt 0:00:11]}
8. Re1 {[%emt 0:00:21]} O-O {[%emt 0:00:42]} 9. d4 {[%emt 0:00:04]} e5 {
[%emt 0:00:47]} 10. d5 {[%emt 0:03:54]} b5 {[%emt 0:01:10]} 11. c4 {[%emt 0:02:
00]} a6 {[%emt 0:02:29]} 12. Qc2 {[%emt 0:06:22]} Nh5 {[%emt 0:00:28]} 13. cxb5
{[%emt 0:05:19]} axb5 {[%emt 0:00:09]} 14. Nc3 {[%emt 0:00:05]} Qb6 {[%emt 0:
03:50]} 15. a4 {[%emt 0:01:55]} bxa4 {[%emt 0:03:30]} 16. Rxa4 {[%emt 0:02:01]}
h6 {[%emt 0:10:26]} 17. g4 {[%emt 0:02:25]} Nf4 {[%emt 0:00:10]} 18. Be3 {
[%emt 0:06:28]} Rab8 {[%emt 0:00:21]} 19. Rb1 {[%emt 0:00:25]} Nf6 {[%emt 0:01:
35]} 20. Bxf4 {[%emt 0:05:50]} exf4 {[%emt 0:00:07]} 21. h3 {[%emt 0:00:09]}
Nd7 {[%emt 0:00:36]} 22. Ne2 {[%emt 0:03:31]} Qb3 {[%emt 0:02:01]} 23. Qxb3 {
[%emt 0:01:12]} Rxb3 {[%emt 0:00:07]} 24. Kg2 {[%emt 0:01:53]} Ne5 {[%emt 0:00:
13]} 25. Ra3 {[%emt 0:09:00]} Rfb8 {[%emt 0:00:13]} 26. Nxf4 {[%emt 0:00:27]}
Rxa3 {[%emt 0:00:28]} 27. Nxe5 {[%emt 0:00:29]} Bxe5 {[%emt 0:00:08]} 0-1

[Event "African Open (w)"]
[Site "followchess.com"]
[Date "2022.09.25"]
[Round "7"]
[White "Wafa, Shahenda"]
[Black "Ofowino, Toritsemuwa"]
[Result "0-1"]
[ECO "B80"]
[WhiteElo "2110"]
[BlackElo "1857"]
[PlyCount "106"]
[EventDate "2022.??.??"]
[TimeControl "5400+30"]

1. e4 {[%emt 0:00:03]} c5 {[%emt 0:00:11]} 2. Nf3 {[%emt 0:00:07]} d6 {[%emt 0:
00:13]} 3. d4 {[%emt 0:00:08]} cxd4 {[%emt 0:00:10]} 4. Nxd4 {[%emt 0:00:08]}
Nf6 {[%emt 0:00:11]} 5. Nc3 {[%emt 0:00:09]} e6 {[%emt 0:00:15]} 6. Be3 {
[%emt 0:00:09]} Be7 {[%emt 0:00:23]} 7. f4 {[%emt 0:00:17]} O-O {[%emt 0:01:06]
} 8. Qf3 {[%emt 0:00:16]} e5 {[%emt 0:02:23]} 9. Nf5 {[%emt 0:00:25]} Bxf5 {
[%emt 0:02:36]} 10. exf5 {[%emt 0:04:16]} Nbd7 {[%emt 0:03:33]} 11. O-O-O {
[%emt 0:01:55]} Rc8 {[%emt 0:00:36]} 12. g4 {[%emt 0:06:56]} Rxc3 {[%emt 0:02:
58]} 13. bxc3 {[%emt 0:00:08]} d5 {[%emt 0:02:56]} 14. fxe5 {[%emt 0:20:18]}
Nxe5 {[%emt 0:00:29]} 15. Qf4 {[%emt 0:06:25]} Bd6 {[%emt 0:09:57]} 16. Qa4 {
[%emt 0:02:51]} Nexg4 {[%emt 0:02:15]} 17. Bd4 {[%emt 0:02:51]} a6 {[%emt 0:10:
29]} 18. Bd3 {[%emt 0:03:46]} Ne5 {[%emt 0:03:57]} 19. h4 {[%emt 0:11:00]} Kh8
{[%emt 0:12:42]} 20. Be3 {[%emt 0:02:04]} Neg4 {[%emt 0:00:52]} 21. Bd4 {
[%emt 0:01:35]} Qc7 {[%emt 0:01:16]} 22. Rde1 {[%emt 0:01:34]} h6 {[%emt 0:03:
44]} 23. Kb1 {[%emt 0:04:10]} Ne5 {[%emt 0:04:36]} 24. Rhf1 {[%emt 0:03:24]}
Ned7 {[%emt 0:07:49]} 25. c4 {[%emt 0:05:13]} Nc5 {[%emt 0:03:51]} 26. Bxc5 {
[%emt 0:01:01]} Qxc5 {[%emt 0:01:01]} 27. Qb3 {[%emt 0:00:37]} d4 {[%emt 0:02:
00]} 28. Be4 {[%emt 0:01:47]} Rb8 {[%emt 0:01:09]} 29. Qd3 {[%emt 0:04:04]} b5
{[%emt 0:03:03]} 30. cxb5 {[%emt 0:01:41]} Rxb5+ {[%emt 0:00:53]} 31. Ka1 {
[%emt 0:02:31]} Qb6 {[%emt 0:05:43]} 32. Rb1 {[%emt 0:02:55]} Bb4 {[%emt 0:01:
53]} 33. Rb3 {[%emt 0:00:13]} Bc3+ {[%emt 0:00:17]} 34. Kb1 {[%emt 0:00:09]}
Qa5 {[%emt 0:00:58]} 35. Bc6 {[%emt 0:01:53]} Rb4 {[%emt 0:00:43]} 36. Qd1 {
[%emt 0:02:03]} Qc5 {[%emt 0:03:04]} 37. Bf3 {[%emt 0:01:26]} a5 {[%emt 0:00:
35]} 38. Qd3 {[%emt 0:01:21]} a4 {[%emt 0:01:36]} 39. Rxb4 {[%emt 0:00:12]}
Qxb4+ {[%emt 0:00:14]} 40. Kc1 {[%emt 0:00:03]} Qa3+ {[%emt 0:00:34]} 41. Kd1 {
[%emt 0:00:09]} Qxa2 {[%emt 0:00:19]} 42. Bc6 {[%emt 0:00:34]} a3 {[%emt 0:00:
26]} 43. Ba4 {[%emt 0:04:50]} Qa1+ {[%emt 0:02:59]} 44. Ke2 {[%emt 0:00:12]}
Qxf1+ {[%emt 0:00:11]} 45. Kxf1 {[%emt 0:00:09]} a2 {[%emt 0:00:04]} 46. Bb3 {
[%emt 0:00:38]} a1=Q+ {[%emt 0:00:07]} 47. Kg2 {[%emt 0:00:10]} Qa8+ {[%emt 0:
01:57]} 48. Kh2 {[%emt 0:04:00]} Qe8 {[%emt 0:04:08]} 49. Kg2 {[%emt 0:01:11]}
Kg8 {[%emt 0:00:14]} 50. Kf3 {[%emt 0:00:00]} Qc6+ {[%emt 0:00:00]} 51. Kf4 {
[%emt 0:00:00]} Qg2 {[%emt 0:00:00]} 52. Qc4 {[%emt 0:00:00]} Qg4+ {[%emt 0:00:
00]} 53. Ke5 {[%emt 0:00:00]} Qg3# {[%emt 0:00:00]} 0-1

[Event "African Open (w)"]
[Site "followchess.com"]
[Date "2022.09.25"]
[Round "7"]
[White "Laubscher, Anzel"]
[Black "Pires, Luzia"]
[Result "0-1"]
[ECO "B50"]
[WhiteElo "1705"]
[BlackElo "1839"]
[PlyCount "138"]
[EventDate "2022.??.??"]
[TimeControl "5400+30"]

1. e4 {[%emt 0:00:01]} c5 {[%emt 0:00:37]} 2. Nf3 {[%emt 0:00:05]} d6 {[%emt 0:
00:28]} 3. d3 {[%emt 0:00:09]} Nf6 {[%emt 0:01:21]} 4. g3 {[%emt 0:00:20]} g6 {
[%emt 0:00:21]} 5. Bg2 {[%emt 0:00:37]} Bg7 {[%emt 0:00:13]} 6. O-O {[%emt 0:
00:28]} O-O {[%emt 0:00:03]} 7. Nbd2 {[%emt 0:01:04]} Nc6 {[%emt 0:01:44]} 8.
c3 {[%emt 0:00:54]} Qb6 {[%emt 0:07:56]} 9. Nc4 {[%emt 0:13:11]} Qc7 {[%emt 0:
04:35]} 10. a4 {[%emt 0:01:25]} Be6 {[%emt 0:02:34]} 11. Ne3 {[%emt 0:05:02]}
Bd7 {[%emt 0:03:48]} 12. Nh4 {[%emt 0:04:40]} Rad8 {[%emt 0:03:46]} 13. f4 {
[%emt 0:05:14]} Qc8 {[%emt 0:01:41]} 14. f5 {[%emt 0:09:45]} a6 {[%emt 0:09:25]
} 15. g4 {[%emt 0:06:53]} g5 {[%emt 0:03:35]} 16. Nf3 {[%emt 0:03:11]} h6 {
[%emt 0:00:02]} 17. h4 {[%emt 0:04:40]} Nh7 {[%emt 0:00:09]} 18. hxg5 {[%emt 0:
01:50]} Nxg5 {[%emt 0:01:08]} 19. Nxg5 {[%emt 0:03:34]} hxg5 {[%emt 0:00:02]}
20. Nd5 {[%emt 0:05:44]} f6 {[%emt 0:04:55]} 21. Be3 {[%emt 0:14:54]} e6 {
[%emt 0:02:10]} 22. Nb6 {[%emt 0:02:25]} Qc7 {[%emt 0:00:02]} 23. Nxd7 {
[%emt 0:01:06]} Qxd7 {[%emt 0:00:07]} 24. Qb3 {[%emt 0:01:34]} Rfe8 {[%emt 0:
00:37]} 25. d4 {[%emt 0:03:17]} Na5 {[%emt 0:03:33]} 26. Qc2 {[%emt 0:01:21]}
c4 {[%emt 0:06:00]} 27. Rf3 {[%emt 0:02:21]} d5 {[%emt 0:01:11]} 28. e5 {
[%emt 0:01:43]} exf5 {[%emt 0:00:48]} 29. gxf5 {[%emt 0:00:32]} Qc7 {[%emt 0:
09:36]} 30. Bxg5 {[%emt 0:03:02]} fxg5 {[%emt 0:02:13]} 31. f6 {[%emt 0:00:12]}
Qf7 {[%emt 0:00:20]} 32. fxg7 {[%emt 0:00:41]} Qxg7 {[%emt 0:00:02]} 33. Rf6 {
[%emt 0:01:08]} Kh8 {[%emt 0:00:44]} 34. Kf2 {[%emt 0:00:27]} Rf8 {[%emt 0:00:
24]} 35. Rh1+ {[%emt 0:00:59]} Kg8 {[%emt 0:00:03]} 36. Qf5 {[%emt 0:01:05]}
Nc6 {[%emt 0:03:58]} 37. Bxd5+ {[%emt 0:01:14]} Rxd5 {[%emt 0:00:39]} 38. Rxf8+
{[%emt 0:00:15]} Qxf8 {[%emt 0:00:33]} 39. Qxf8+ {[%emt 0:00:00]} Kxf8 {
[%emt 0:00:02]} 40. Rh7 {[%emt 0:00:28]} Ne7 {[%emt 0:00:38]} 41. Kf3 {[%emt 0:
00:27]} Ra5 {[%emt 0:06:22]} 42. Ke4 {[%emt 0:00:36]} Ke8 {[%emt 0:04:11]} 43.
Rg7 {[%emt 0:00:00]} Rxa4 {[%emt 0:00:00]} 44. Rxg5 {[%emt 0:00:00]} Ra2 {
[%emt 0:00:00]} 45. Rg2 {[%emt 0:00:00]} Ra1 {[%emt 0:00:00]} 46. Rh2 {[%emt 0:
00:00]} Re1+ {[%emt 0:00:00]} 47. Kf4 {[%emt 0:00:00]} Kd7 {[%emt 0:00:00]} 48.
Rh7 {[%emt 0:00:00]} Re2 {[%emt 0:00:00]} 49. d5 {[%emt 0:00:00]} Ke8 {[%emt 0:
00:00]} 50. Rh8+ {[%emt 0:00:00]} Kf7 {[%emt 0:00:00]} 51. e6+ {[%emt 0:00:00]}
Kg7 {[%emt 0:00:00]} 52. Rd8 {[%emt 0:00:00]} Kf6 {[%emt 0:00:00]} 53. Rf8+ {
[%emt 0:00:00]} Kg6 {[%emt 0:00:00]} 54. Rd8 {[%emt 0:00:00]} Nxd5+ {[%emt 0:
00:00]} 55. Rxd5 {[%emt 0:00:00]} Rxe6 {[%emt 0:00:00]} 56. Rd2 {[%emt 0:00:00]
} Kf6 {[%emt 0:00:00]} 57. Rh2 {[%emt 0:00:00]} b5 {[%emt 0:00:00]} 58. Rh6+ {
[%emt 0:00:37]} Ke7 {[%emt 0:00:00]} 59. Rh7+ {[%emt 0:00:57]} Kd6 {[%emt 0:00:
00]} 60. Ra7 {[%emt 0:01:58]} Kc5 {[%emt 0:00:03]} 61. Kf3 {[%emt 0:03:09]} Kb6
{[%emt 0:00:35]} 62. Rg7 {[%emt 0:02:31]} Ka5 {[%emt 0:00:09]} 63. Rd7 {
[%emt 0:01:40]} Ka4 {[%emt 0:00:21]} 64. Rd2 {[%emt 0:00:38]} Kb3 {[%emt 0:00:
13]} 65. Kf2 {[%emt 0:00:36]} Rh6 {[%emt 0:01:30]} 66. Ke3 {[%emt 0:00:30]} Rh1
{[%emt 0:00:39]} 67. Kd4 {[%emt 0:01:04]} Rb1 {[%emt 0:00:03]} 68. Kc5 {
[%emt 0:00:41]} Rxb2 {[%emt 0:00:08]} 69. Rd6 {[%emt 0:00:35]} Ra2 {[%emt 0:00:
28]} 0-1

[Event "African Open (w)"]
[Site "followchess.com"]
[Date "2022.09.25"]
[Round "7"]
[White "ONOJA, Iyefu Joy"]
[Black "Likando Namakau"]
[Result "1/2-1/2"]
[ECO "D02"]
[WhiteElo "1762"]
[BlackElo "1527"]
[PlyCount "127"]
[EventDate "2022.??.??"]
[TimeControl "5400+30"]

1. d4 {[%emt 0:00:07]} d5 {[%emt 0:00:28]} 2. Nf3 {[%emt 0:00:12]} Nf6 {
[%emt 0:00:16]} 3. Bf4 {[%emt 0:00:18]} e6 {[%emt 0:01:19]} 4. e3 {[%emt 0:00:
16]} h6 {[%emt 0:02:10]} 5. Be2 {[%emt 0:01:33]} Be7 {[%emt 0:00:49]} 6. O-O {
[%emt 0:00:16]} Nh5 {[%emt 0:07:10]} 7. Be5 {[%emt 0:00:44]} O-O {[%emt 0:05:
40]} 8. h3 {[%emt 0:02:18]} Nf6 {[%emt 0:01:06]} 9. Nbd2 {[%emt 0:01:20]} c5 {
[%emt 0:01:11]} 10. c4 {[%emt 0:01:01]} Nc6 {[%emt 0:01:57]} 11. Bh2 {[%emt 0:
15:34]} cxd4 {[%emt 0:09:00]} 12. Nxd4 {[%emt 0:01:25]} Bd7 {[%emt 0:04:43]}
13. Nb5 {[%emt 0:02:32]} a6 {[%emt 0:02:11]} 14. Nc3 {[%emt 0:06:25]} d4 {
[%emt 0:10:43]} 15. exd4 {[%emt 0:03:07]} Nxd4 {[%emt 0:00:24]} 16. Bd3 {
[%emt 0:00:58]} Qb6 {[%emt 0:02:25]} 17. Rb1 {[%emt 0:09:27]} Bc6 {[%emt 0:04:
42]} 18. Nb3 {[%emt 0:07:43]} Rad8 {[%emt 0:03:02]} 19. Nxd4 {[%emt 0:02:47]}
Qxd4 {[%emt 0:08:25]} 20. Be2 {[%emt 0:01:29]} Qh4 {[%emt 0:05:47]} 21. Qc1 {
[%emt 0:06:31]} Nh7 {[%emt 0:05:53]} 22. Qf4 {[%emt 0:02:32]} Qxf4 {[%emt 0:01:
18]} 23. Bxf4 {[%emt 0:00:06]} g5 {[%emt 0:01:06]} 24. Be3 {[%emt 0:00:09]} f5
{[%emt 0:01:57]} 25. Rfd1 {[%emt 0:00:44]} f4 {[%emt 0:02:26]} 26. Bb6 {
[%emt 0:00:11]} Rxd1+ {[%emt 0:04:53]} 27. Rxd1 {[%emt 0:00:19]} Nf6 {[%emt 0:
00:34]} 28. a3 {[%emt 0:02:58]} Nd7 {[%emt 0:01:58]} 29. Bc7 {[%emt 0:00:11]}
Rc8 {[%emt 0:02:12]} 30. Bd6 {[%emt 0:00:08]} Bxd6 {[%emt 0:00:52]} 31. Rxd6 {
[%emt 0:00:07]} Kf7 {[%emt 0:00:41]} 32. Bg4 {[%emt 0:03:11]} Re8 {[%emt 0:00:
50]} 33. Bh5+ {[%emt 0:00:59]} Ke7 {[%emt 0:00:34]} 34. Rxe6+ {[%emt 0:00:24]}
Kxe6 {[%emt 0:00:37]} 35. Bxe8 {[%emt 0:00:07]} Ne5 {[%emt 0:01:30]} 36. Bxc6 {
[%emt 0:01:05]} Nxc6 {[%emt 0:00:12]} 37. Kf1 {[%emt 0:00:05]} Ke5 {[%emt 0:00:
26]} 38. Ke2 {[%emt 0:01:57]} Kd4 {[%emt 0:00:43]} 39. h4 {[%emt 0:03:12]} Kxc4
{[%emt 0:01:06]} 40. hxg5 {[%emt 0:00:09]} hxg5 {[%emt 0:00:36]} 41. Ne4 {
[%emt 0:00:10]} Nd4+ {[%emt 0:03:56]} 42. Kd2 {[%emt 0:00:24]} Ne6 {[%emt 0:01:
16]} 43. Nd6+ {[%emt 0:04:17]} Kb3 {[%emt 0:01:01]} 44. Nxb7 {[%emt 0:02:14]}
Kxb2 45. a4 Kb3 {[%emt 0:01:46]} 46. a5 {[%emt 0:00:41]} Kc4 {[%emt 0:00:00]}
47. Ke2 {[%emt 0:00:00]} g4 {[%emt 0:00:00]} 48. Nd6+ {[%emt 0:00:00]} Kb4 {
[%emt 0:00:00]} 49. Kd3 {[%emt 0:00:00]} Kxa5 {[%emt 0:00:00]} 50. Kc4 {
[%emt 0:00:00]} Kb6 {[%emt 0:00:00]} 51. Kd5 {[%emt 0:00:00]} Nc5 {[%emt 0:00:
00]} 52. Nc4+ {[%emt 0:00:00]} Kb5 {[%emt 0:00:00]} 53. Na3+ {[%emt 0:00:00]}
Kb4 {[%emt 0:00:00]} 54. Nc2+ {[%emt 0:00:00]} Kc3 {[%emt 0:00:00]} 55. Na3 {
[%emt 0:00:00]} Nd3 {[%emt 0:00:00]} 56. Ke4 {[%emt 0:00:00]} a5 {[%emt 0:00:
00]} 57. Nb1+ {[%emt 0:00:00]} Kc2 {[%emt 0:00:00]} 58. Na3+ {[%emt 0:00:00]}
Kd2 {[%emt 0:00:00]} 59. Nc4+ {[%emt 0:00:00]} Ke2 {[%emt 0:00:00]} 60. f3 {
[%emt 0:00:00]} gxf3 {[%emt 0:00:00]} 61. gxf3 {[%emt 0:00:00]} a4 {[%emt 0:00:
00]} 62. Na3 {[%emt 0:00:00]} Ne1 {[%emt 0:00:00]} 63. Kxf4 {[%emt 0:00:00]}
Nxf3 {[%emt 0:00:00]} 64. Ke4 {[%emt 0:00:00]} 1/2-1/2